bitfinex-derivatives/quotes_ETHF0:USTF0_20240830
["timestamp","ask_amount","ask_price","bid_price","bid_amount"]
[1725051116272,3.60571,2513.3,2513.2,0.39791]
[1725051116586,3.2078,2513.3,2513.2,0.39791]
[1725051116778,3.6057,2513.3,2513.2,0.39791]
[1725051116974,3.6057,2513.3,2513.1,0.39792]
[1725051116975,0.39792,2513.2,2513.1,0.39792]
[1725051117180,3.2078,2513.3,2512.8,1.38484]
[1725051117481,0.39792,2513.2,2512.8,1.38484]
[1725051117879,0.39792,2513.2,2512.8,5.36404]
[1725051118472,0.39792,2513.2,2513.1,0.39793]
[1725051118886,0.78392,2513.2,2513.1,4.37713]
[1725051119276,0.78392,2513.2,2513.1,0.39793]
[1725051121283,0.39792,2513.2,2513.1,0.39793]
[1725051122793,0.39791,2513.3,2513.2,0.3979]
[1725051130601,0.39791,2513.3,2512.7,4.1542]
[1725051130602,0.39794,2513.1,2512.7,4.1542]
[1725051130895,4.6378,2513.1,2513.0,0.39793]
[1725051131090,1.43,2513.2,2513.1,0.39793]
[1725051132499,1.82791,2513.2,2513.1,0.39793]
[1725051132886,5.80711,2513.2,2513.1,0.39793]
[1725051133191,10.30182478,2513.2,2513.1,0.39793]
[1725051134392,6.32262478,2513.2,2513.1,0.39793]
[1725051136295,5.92471478,2513.2,2513.1,0.39793]
[1725051137286,1.43,2513.2,2513.1,0.39793]
[1725051138500,1.43,2513.2,2513.1,5.37196]
[1725051140201,3.2078,2513.7,2513.2,0.99476]
[1725051140393,2.18236,2513.6,2513.5,0.39785]
[1725051140591,6.45852736,2513.6,2513.5,0.39785]
[1725051141989,0.40380181,2513.8,2513.5,4.97307]
[1725051142187,0.40380181,2513.8,2513.2,3.2078]
[1725051142188,0.00597181,2513.8,2513.7,1.39242]
[1725051142387,0.00597181,2513.8,2513.7,5.37082]
[1725051142800,0.00597181,2513.8,2513.7,6.12533531]
[1725051143293,0.00597181,2513.8,2513.7,5.72702]
[1725051143697,0.00597181,2513.8,2513.7,6.72161]
[1725051143896,0.00597181,2513.8,2513.7,7.11986696]
[1725051145387,0.00597181,2513.8,2513.7,7.11977883]
[1725051145690,0.00597181,2513.8,2513.7,6.72161]
[1725051150898,0.00597181,2513.8,2513.7,7.11962107]
[1725051151801,0.3605,2514.0,2513.7,7.11962107]
[1725051151802,0.3605,2514.0,2513.9,1.39232]
[1725051152202,0.3605,2514.0,2513.9,5.36992]
[1725051154297,0.3605,2514.0,2513.9,1.39232]
[1725051154699,0.3605,2514.0,2513.9,2.38684]
[1725051156502,0.3605,2514.0,2513.9,6.36444]
[1725051157403,0.3605,2514.0,2513.9,2.38684]
[1725051157595,0.37597181,2514.2,2513.8,3.2078]
[1725051157801,0.00597181,2514.2,2514.1,7.02445]
[1725051158000,0.00597181,2514.2,2514.1,9.01333]
[1725051158199,0.00597181,2514.2,2514.1,18.99093]
[1725051158397,0.00597181,2514.2,2514.1,17.00205]
[1725051158705,0.00597181,2514.2,2514.1,17.35515]
[1725051159303,0.00597181,2514.2,2514.1,19.74184297]
[1725051159506,0.00597181,2514.2,2514.1,17.75296297]
[1725051159707,0.00597181,2514.2,2514.1,19.74184297]
[1725051160006,0.00597181,2514.2,2514.1,16.53404297]
[1725051160204,1.81e-06,2514.2,2514.1,19.74184297]
[1725051160512,1.81e-06,2514.2,2514.1,19.34403]
[1725051160702,1.81e-06,2514.2,2514.1,19.74184297]
[1725051160910,0.3839,2514.5,2514.4,2.38636]
[1725051161099,0.3839,2514.5,2514.4,5.59416]
[1725051161405,0.3839,2514.5,2514.4,9.57096]
[1725051162409,0.3839,2514.5,2514.4,4.59984]
[1725051162803,0.3839,2514.5,2514.4,8.57664]
[1725051166009,0.3839,2514.5,2514.4,5.36884]
[1725051166410,0.3839,2514.5,2514.4,1.39204]
[1725051168107,0.3839,2514.5,2514.4,0.39772]
[1725051170020,0.3839,2514.5,2514.4,1.39204]
[1725051170910,0.3839,2514.5,2514.4,0.39772]
[1725051171408,0.3839,2514.5,2514.4,1.39204]
[1725051174517,0.3839,2514.5,2514.4,2.82204]
[1725051176312,0.3839,2514.5,2514.4,1.39204]
[1725051177311,0.3839,2514.5,2514.4,2.38636]
[1725051180924,0.3839,2514.5,2514.4,0.39772]
[1725051181819,0.78161,2514.5,2514.4,0.39772]
[1725051182027,0.3839,2514.5,2514.4,0.39772]
[1725051182421,0.78161,2514.5,2514.4,0.39772]
[1725051182624,0.39772,2514.4,2514.3,3.60553]
[1725051182816,0.77742,2514.4,2514.3,3.60553]
[1725051183022,1.15302,2514.4,2514.3,3.60553]
[1725051184521,1.15302,2514.4,2514.3,0.39773]
[1725051187618,1.15302,2514.4,2513.9,0.00597181]
[1725051187619,2.38675,2514.0,2513.9,0.00597181]
[1725051187818,2.38675,2514.0,2513.9,0.40420154]
[1725051188023,0.39787,2513.5,2513.4,0.39788]
[1725051188321,1.39254,2513.5,2513.4,1.02545645]
[1725051188525,0.99474,2513.4,2513.0,3.2078]
[1725051188721,0.39791,2513.2,2513.1,1.02600117]
[1725051188916,0.39791,2513.2,2513.1,0.39855217]
[1725051189418,0.39791,2513.2,2512.9,0.00597181]
[1725051189419,5.4092,2513.2,2512.9,0.00597181]
[1725051189626,0.39795,2513.0,2512.9,0.00597181]
[1725051189823,5.72557953,2513.2,2513.0,0.39794]
[1725051189824,4.69349953,2513.2,2513.0,0.39794]
[1725051190020,0.39792,2513.2,2513.0,0.39794]
[1725051190329,0.39793,2513.2,2513.0,0.39795]
[1725051191830,0.3571,2513.1,2513.0,0.39795]
[1725051192127,0.39795,2513.0,2512.9,0.00597181]
[1725051193333,4.37715,2513.0,2512.9,0.00597181]
[1725051193529,8.64029346,2513.0,2512.9,0.00597181]
[1725051194733,1.35194,2513.1,2512.9,0.40393181]
[1725051194734,0.75504,2513.1,2512.9,0.40393181]
[1725051195029,0.75504,2513.1,2512.9,0.40392181]
[1725051197434,0.39795,2513.0,2512.9,0.00597181]
[1725051198040,0.75504,2513.1,2512.9,0.40392181]
[1725051198225,0.3571,2513.1,2512.9,0.00597181]
[1725051198426,0.75504,2513.1,2512.9,0.40392181]
[1725051198931,0.39795,2513.0,2512.9,0.00597181]
[1725051199534,8.5768757,2513.0,2512.9,0.00597181]
[1725051199936,9.5717457,2513.0,2512.9,0.00597181]
[1725051200733,15.5717457,2513.0,2512.9,0.00597181]
[1725051200919,16.5666157,2513.0,2512.9,0.00597181]
[1725051201124,9.5717457,2513.0,2512.9,0.00597181]
[1725051201429,4.5976757,2513.0,2512.9,0.00597181]
[1725051204028,9.5717457,2513.0,2512.9,0.00597181]
[1725051213938,10.5666157,2513.0,2512.9,0.00597181]
[1725051219139,9.5717457,2513.0,2512.9,0.00597181]
[1725051219535,4.5976757,2513.0,2512.9,0.40393181]
[1725051219742,1.82795,2513.0,2512.9,0.40393181]
[1725051222653,1.43,2513.0,2512.9,0.40393181]
[1725051224044,1.43,2513.0,2512.9,1.39884181]
[1725051224246,1.43,2513.0,2512.9,0.40393181]
[1725051224554,1.43,2513.0,2512.9,0.77633181]
[1725051225350,4.6378,2513.2,2513.1,0.39793]
[1725051225548,4.6378,2513.2,2513.1,1.39276]
[1725051226052,0.3793,2513.3,2513.2,1.3927]
[1725051226355,0.00597181,2513.4,2513.3,0.3979]
[1725051226356,1.43597181,2513.4,2513.3,0.3979]
[1725051227349,1.43597181,2513.4,2513.3,1.39265]
[1725051227557,1.43597181,2513.4,2513.3,1.77005]
[1725051228457,0.00597181,2513.4,2513.3,1.77005]
[1725051234259,0.00597181,2513.4,2513.3,2.16780031]
[1725051236356,0.00597181,2513.4,2513.3,1.77005]
[1725051237257,0.00597181,2513.4,2513.3,0.7753]
[1725051238057,0.00597181,2513.4,2513.3,0.3979]
[1725051240659,0.40385181,2513.4,2513.3,0.3979]
[1725051241451,0.00597181,2513.4,2513.3,0.3979]
[1725051241651,1.83385181,2513.4,2513.3,0.3979]
[1725051242650,0.40385181,2513.4,2513.3,0.3979]
[1725051243664,1.83385181,2513.4,2513.3,0.3979]
[1725051247664,0.00597181,2513.4,2513.3,2.3874]
[1725051247867,0.00597181,2513.4,2513.3,13.52343072]
[1725051248063,0.00597181,2513.4,2513.3,14.15003627]
[1725051248265,0.00597181,2513.4,2513.3,15.1924404]
[1725051248466,0.00597181,2513.4,2513.3,14.16780413]
[1725051248667,0.00597181,2513.4,2513.3,15.19217907]
[1725051248867,1.81e-06,2513.4,2513.3,17.18168907]
[1725051249068,1.82772,2514.4,2514.3,0.39774]
[1725051249268,3.2078,2514.6,2513.9,0.99451]
[1725051249269,2.18842,2514.5,2514.0,0.99446]
[1725051249468,2.18842,2514.5,2514.3,0.39773]
[1725051249469,0.39772,2514.4,2514.3,0.39773]
[1725051250175,0.39773,2514.4,2514.3,0.39773]
[1725051250374,2.18842,2514.5,2514.1,0.00597181]
[1725051250673,5.39622,2514.5,2514.1,0.00597181]
[1725051251180,2.18842,2514.5,2514.1,0.00597181]
[1725051251877,2.18842,2514.5,2514.4,0.39772]
[1725051254869,0.39773,2514.4,2514.3,0.39773]
[1725051255184,6.13192974,2514.4,2514.3,0.39773]
[1725051255372,10.10872974,2514.4,2514.3,0.39773]
[1725051255682,1.82773,2514.4,2514.3,0.39773]
[1725051256180,1.43,2514.4,2514.3,0.39773]
[1725051258586,1.7907,2514.5,2514.4,0.39772]
[1725051258875,2.18841,2514.5,2514.4,0.39772]
[1725051259078,1.7907,2514.5,2514.4,0.39772]
[1725051259579,2.18841,2514.5,2514.4,0.39772]
[1725051262476,1.7907,2514.5,2514.4,0.39772]
[1725051264090,2.18841,2514.5,2514.4,0.39772]
[1725051264286,1.7907,2514.5,2514.4,0.39772]
[1725051265600,2.18841,2514.5,2514.4,0.39772]
[1725051266994,1.7907,2514.5,2514.4,0.39772]
[1725051268000,0.3607,2514.5,2514.4,2.38636]
[1725051271187,3.2078,2514.9,2514.4,4.97112]
[1725051271391,0.3603,2514.8,2514.7,2.38608]
[1725051271795,0.3603,2514.8,2514.7,6.36288]
[1725051277387,0.3603,2514.8,2514.7,5.36868]
[1725051277596,0.3603,2514.8,2514.7,0.39768]
[1725051277597,1.7903,2514.8,2514.7,0.39768]
[1725051277795,1.7903,2514.8,2514.7,1.39188]
[1725051278290,1.7903,2514.8,2514.7,0.39768]
[1725051278891,0.3603,2514.8,2514.7,0.39768]
[1725051280696,2.21535,2514.9,2514.8,0.39766]
[1725051281407,1.8177,2514.9,2514.8,0.39766]
[1725051282995,2.21535,2514.9,2514.8,0.39766]
[1725051283810,1.8177,2514.9,2514.8,0.39766]
[1725051284298,2.21535,2514.9,2514.8,0.39766]
[1725051289008,0.39766,2514.8,2514.7,3.60546]
[1725051292810,0.39766,2514.8,2514.7,0.39766]
[1725051293008,0.39766,2514.8,2514.7,3.60546]
[1725051293415,0.39766,2514.8,2514.7,4.00328744]
[1725051293612,0.39766,2514.8,2514.7,3.60546]
[1725051294212,0.39766,2514.8,2514.7,0.39766]
[1725051294510,0.39766,2514.8,2514.7,0.79549318]
[1725051295620,0.39766,2514.8,2514.7,0.39783318]
[1725051297013,0.39766,2514.8,2514.7,0.79551318]
[1725051298914,0.39766,2514.8,2514.7,0.39783318]
[1725051299117,0.39769,2514.6,2514.5,0.3977]
[1725051299315,0.39769,2514.6,2514.5,1.4229957]
[1725051299520,0.77209,2514.6,2514.5,0.7959352]
[1725051302017,0.3744,2514.6,2514.5,0.7959352]
[1725051302213,0.39769,2514.7,2514.6,0.39769]
[1725051302423,0.39769,2514.7,2514.6,0.7959252]
[1725051303325,0.39769,2514.7,2514.6,0.79591919]
[1725051306011,1.39189,2514.7,2514.6,0.79591919]
[1725051306212,0.39769,2514.7,2514.6,0.79591919]
[1725051306413,0.39769,2514.7,2514.6,0.39769]
[1725051306630,1.39189,2514.7,2514.6,0.79593234]
[1725051310129,1.39189,2514.7,2514.6,0.39769]
[1725051310327,1.39189,2514.7,2514.6,0.79593614]
[1725051310922,0.39769,2514.7,2514.6,0.79593614]
[1725051311131,0.39769,2514.7,2514.6,1.42298711]
[1725051313026,0.39769,2514.7,2514.6,0.39769]
[1725051313332,0.39769,2514.7,2514.6,1.42274576]
[1725051316221,0.39769,2514.7,2514.6,0.39769]
[1725051316425,0.39769,2514.7,2514.6,1.42270424]
[1725051318137,0.39769,2514.7,2514.6,0.39769]
[1725051318334,0.39769,2514.7,2514.6,1.42271419]
[1725051318931,0.39769,2514.7,2514.6,1.77491419]
[1725051319623,0.39769,2514.7,2514.6,1.77492806]
[1725051320936,0.39769,2514.7,2514.6,1.42272806]
[1725051323037,0.39769,2514.7,2514.6,1.42216207]
[1725051326331,0.39769,2514.7,2514.6,1.42218064]
[1725051329426,0.39769,2514.7,2514.6,0.39769]
[1725051329730,0.39769,2514.7,2514.6,1.42227501]
[1725051332630,0.39769,2514.7,2514.6,0.39769]
[1725051332836,0.39769,2514.7,2514.6,1.42206982]
[1725051334043,1.39189,2514.7,2514.6,1.42206982]
[1725051335839,0.39769,2514.7,2514.6,1.42206982]
[1725051336042,0.39769,2514.7,2514.6,0.39769]
[1725051336241,0.39769,2514.7,2514.6,1.42206097]
[1725051340245,0.39767,2514.8,2514.7,0.39766]
[1725051340444,0.39767,2514.8,2514.7,1.42203097]
[1725051342644,0.39767,2514.8,2514.7,0.39766]
[1725051342946,0.39767,2514.8,2514.7,1.81950706]
[1725051345446,7.35581402,2515.3,2514.7,16.03644706]
[1725051345641,3.2078,2515.7,2515.3,0.99396]
[1725051345841,0.3697,2515.6,2515.5,0.39755]
[1725051346041,4.82175035,2515.6,2515.5,0.39755]
[1725051348159,5.21928035,2515.6,2515.5,0.39755]
[1725051348851,0.39755,2515.5,2515.4,0.77226]
[1725051349154,0.76925,2515.5,2515.4,0.39756]
[1725051349341,1.13185,2515.5,2515.4,0.39756]
[1725051350637,1.13185,2515.5,2515.4,1.42069283]
[1725051350841,1.13185,2515.5,2515.4,0.39756]
[1725051352649,0.39757,2515.4,2515.3,0.39757]
[1725051353257,0.39757,2515.4,2515.3,1.42058055]
[1725051354456,0.39757,2515.4,2515.3,0.79491874]
[1725051358558,0.39758,2515.3,2515.2,0.00597181]
[1725051358759,0.76698,2515.3,2515.2,0.80086855]
[1725051361162,0.3694,2515.3,2515.2,0.80086855]
[1725051361345,0.3694,2515.3,2515.2,0.80076952]
[1725051362062,0.76698,2515.3,2515.2,0.80076952]
[1725051362262,0.76698,2515.3,2515.2,0.40357181]
[1725051366061,0.3694,2515.3,2515.2,0.40357181]
[1725051366257,0.76698,2515.3,2515.2,0.40357181]
[1725051366461,0.3694,2515.3,2515.2,0.40357181]
[1725051367660,0.76698,2515.3,2515.2,0.40357181]
[1725051372160,0.76698,2515.3,2515.2,0.00597181]
[1725051372161,15.55040667,2515.3,2515.2,0.00597181]
[1725051372656,12.34260667,2515.3,2515.2,0.00597181]
[1725051375765,16.91260667,2515.3,2515.2,0.00597181]
[1725051375966,18.34260667,2515.3,2515.2,0.00597181]
[1725051378172,12.34260667,2515.3,2515.2,0.00597181]
[1725051378668,18.34260667,2515.3,2515.2,0.00597181]
[1725051381368,0.39768,2514.7,2514.6,0.39769]
[1725051381671,0.39768,2514.7,2514.6,0.79474064]
[1725051384767,0.39768,2514.7,2514.6,0.79475956]
[1725051385874,1.39199,2514.5,2514.4,0.00597181]
[1725051386475,1.76729,2514.5,2514.4,0.00597181]
[1725051390769,8.16837,2514.5,2514.4,0.00597181]
[1725051391074,12.5919763,2514.5,2514.4,0.00597181]
[1725051396181,11.8229763,2514.5,2514.4,0.00597181]
[1725051397278,8.6151763,2514.5,2514.4,0.00597181]
[1725051397479,11.8229763,2514.5,2514.4,0.00597181]
[1725051404584,8.6151763,2514.5,2514.4,0.00597181]
[1725051411587,12.5919763,2514.5,2514.4,0.00597181]
[1725051413984,15.7997763,2514.5,2514.4,0.00597181]
[1725051415889,12.5919763,2514.5,2514.4,0.00597181]
[1725051416090,15.7997763,2514.5,2514.4,0.00597181]
[1725051417493,10.8286963,2514.5,2514.4,0.00597181]
[1725051417898,4.59979,2514.5,2514.4,0.39307181]
[1725051418205,0.00597181,2514.9,2514.8,2.38598]
[1725051418390,0.00597181,2514.9,2514.8,7.79198]
[1725051418591,2.42385,2515.6,2515.4,0.39756]
[1725051418795,0.39756,2515.5,2515.4,0.39756]
[1725051418996,0.39755,2515.6,2515.5,0.39755]
[1725051419193,3.60532,2515.7,2515.6,0.39753]
[1725051419390,3.2078,2515.7,2515.6,0.39753]
[1725051420100,3.60532,2515.7,2515.6,0.39753]
[1725051420496,3.60532,2515.7,2515.5,0.39754]
[1725051420497,0.39754,2515.6,2515.5,0.39754]
[1725051422699,0.39755,2515.5,2515.4,0.39755]
[1725051423105,0.39755,2515.5,2515.4,4.37275]
[1725051423404,0.39755,2515.6,2515.5,0.39755]
[1725051424200,0.39756,2515.5,2515.4,0.39756]
[1725051424408,0.39757,2515.4,2515.3,0.39757]
[1725051424608,0.39757,2515.4,2515.3,4.37277]
[1725051425108,0.39756,2515.5,2515.4,0.39756]
[1725051425402,0.39757,2515.4,2515.3,0.39757]
[1725051427195,0.3976,2515.2,2515.1,0.7524]
[1725051427394,0.39759,2515.3,2515.2,0.39759]
[1725051427599,0.3976,2515.2,2515.1,0.7524]
[1725051428008,0.3976,2515.2,2515.1,4.7284]
[1725051428197,1.43,2515.4,2515.2,0.39759]
[1725051428198,0.39759,2515.3,2515.2,0.39759]
[1725051429995,0.39759,2515.3,2514.7,4.6378]
[1725051429996,0.3976,2515.2,2514.8,4.158]
[1725051430197,0.39764,2515.0,2514.9,0.39763]
[1725051431711,0.39766,2514.9,2514.8,0.39765]
[1725051432101,0.39764,2515.0,2514.9,0.39763]
[1725051435011,0.39766,2514.9,2514.8,0.39765]
[1725051435407,0.39766,2514.8,2514.7,3.2078]
[1725051435808,1.39182,2514.8,2514.7,3.2078]
[1725051436308,1.75982,2514.8,2514.7,3.2078]
[1725051436811,7.53512908,2514.8,2514.7,3.2078]
[1725051438714,11.51192908,2514.8,2514.7,3.2078]
[1725051439119,12.50608908,2514.8,2514.7,3.2078]
[1725051442218,0.39769,2514.6,2514.5,3.60551]
[1725051444322,1.34581,2515.0,2514.6,0.99424]
[1725051444512,1.34581,2515.0,2514.8,0.39765]
[1725051444513,0.39766,2514.9,2514.8,0.39765]
[1725051447731,2.17934,2515.0,2514.9,0.39765]
[1725051448032,1.7817,2515.0,2514.9,1.39177]
[1725051453231,0.7138,2515.5,2515.0,0.99408]
[1725051453428,0.3555,2515.5,2515.4,1.39149]
[1725051453625,3.2078,2515.7,2515.5,0.99388]
[1725051453832,3.2078,2515.7,2515.6,1.39137]
[1725051454032,0.99361,2516.2,2515.6,1.39137]
[1725051454033,3.2078,2516.2,2516.1,0.39746]
[1725051454237,3.2078,2516.7,2516.6,0.39737]
[1725051455130,5.03516,2516.7,2516.3,0.361]
[1725051455430,5.03516,2516.7,2516.6,0.39738]
[1725051455431,4.6378,2516.7,2516.6,0.39738]
[1725051455829,5.03516,2516.7,2516.6,0.39738]
[1725051456028,3.60516,2516.7,2516.6,0.39738]
[1725051456225,3.60516,2516.7,2516.3,0.361]
[1725051456832,0.99327,2517.1,2516.6,0.39738]
[1725051456833,4.42327,2517.1,2516.6,0.39738]
[1725051457131,0.39735,2516.8,2516.6,0.39738]
[1725051457536,0.39735,2516.8,2516.7,3.9736]
[1725051458127,3.2078,2517.2,2516.7,3.9736]
[1725051458344,3.2078,2517.2,2516.6,3.43]
[1725051458543,3.2078,2517.2,2517.1,0.3973]
[1725051459238,3.82723,2517.6,2517.1,3.9728]
[1725051459434,3.82723,2517.6,2517.4,0.39725]
[1725051459633,4.5091318,2517.6,2517.5,0.39723]
[1725051459839,3.2078,2518.3,2517.9,0.39716]
[1725051460136,3.60492,2518.3,2518.1,0.39713]
[1725051460635,3.2078,2518.3,2517.7,0.3565]
[1725051460833,0.3658,2518.4,2517.1,8.01192]
[1725051460834,6.6378,2518.0,2517.1,8.01192]
[1725051461034,0.39718,2517.9,2517.7,0.3972]
[1725051461236,3.2078,2518.0,2517.9,0.39717]
[1725051462240,3.2078,2518.0,2517.9,4.36837]
[1725051462544,3.2078,2518.0,2517.6,0.3565]
[1725051462545,3.2078,2518.0,2517.8,0.39718]
[1725051462838,3.2078,2518.0,2517.6,0.75371]
[1725051463042,3.2078,2518.0,2517.6,0.3565]
[1725051463237,3.2078,2518.0,2517.2,3.41630506]
[1725051463440,0.39718,2517.9,2517.5,0.39722]
[1725051463741,0.39719,2517.8,2517.5,0.39723]
[1725051464130,0.39719,2517.8,2517.5,4.36923]
[1725051464335,0.39718,2517.9,2517.6,3.972]
[1725051464636,0.39719,2517.8,2517.5,0.39723]
[1725051465139,0.39718,2517.9,2517.5,4.36923]
[1725051465348,0.39718,2517.9,2517.5,0.39723]
[1725051465539,0.39721,2517.7,2517.4,0.39724]
[1725051465743,0.39718,2517.9,2517.6,0.39722]
[1725051465933,0.39719,2517.8,2517.5,0.39722]
[1725051466441,3.2078,2518.0,2517.6,3.972]
[1725051466635,0.39719,2517.8,2517.5,0.39722]
[1725051467137,0.39719,2517.8,2517.6,3.972]
[1725051467534,3.2078,2518.0,2517.3,0.3737]
[1725051467729,0.39721,2517.7,2517.4,0.39725]
[1725051468143,0.39721,2517.7,2517.4,4.36925]
[1725051468333,0.39722,2517.6,2517.2,4.56122983]
[1725051468542,0.75692,2517.6,2517.3,0.39726]
[1725051468935,0.3597,2517.6,2517.4,0.39724]
[1725051470737,3.60501,2517.7,2517.4,0.39724]
[1725051471238,0.39722,2517.6,2517.4,0.39724]
[1725051472535,3.2078,2517.7,2517.2,4.16395983]
[1725051472843,0.39722,2517.6,2517.4,0.39725]
[1725051473637,0.39724,2517.5,2517.3,0.39725]
[1725051473838,0.39726,2517.4,2517.2,4.56122983]
[1725051474038,0.39726,2517.4,2517.2,4.37602983]
[1725051474243,0.39727,2517.3,2517.2,0.00595983]
[1725051475249,1.39044,2517.3,2517.2,0.00595983]
[1725051476955,1.77914,2517.3,2517.2,0.00595983]
[1725051477958,2.77231,2517.3,2517.2,0.00595983]
[1725051478254,1.77914,2517.3,2517.2,0.00595983]
[1725051485454,6.74511,2517.3,2517.2,0.00595983]
[1725051486261,5.75194,2517.3,2517.2,0.00595983]
[1725051486462,6.74511,2517.3,2517.2,0.00595983]
[1725051487052,6.74511,2517.3,2516.5,3.575]
[1725051487053,0.99336,2516.9,2516.5,3.575]
[1725051487262,1.39083,2516.6,2516.5,3.2078]
[1725051487658,0.39738,2516.6,2516.5,3.2078]
[1725051487852,0.99341,2516.8,2516.5,7.57879]
[1725051487853,0.39738,2516.7,2516.5,7.57879]
[1725051488058,0.39738,2516.7,2516.5,3.60519]
[1725051488557,0.39737,2516.7,2516.5,3.60519]
[1725051488756,0.99341,2516.8,2516.5,3.60519]
[1725051489063,0.39738,2516.6,2516.5,3.60519]
[1725051489359,0.39737,2516.7,2516.5,3.60519]
[1725051489559,0.39738,2516.6,2516.5,3.2078]
[1725051489965,0.39738,2516.6,2516.5,7.1814]
[1725051490359,0.39738,2516.6,2516.5,7.57879]
[1725051491162,0.39737,2516.7,2516.5,7.57879]
[1725051491361,0.39737,2516.7,2516.5,3.60519]
[1725051491966,0.39738,2516.6,2516.5,3.60519]
[1725051492370,0.39738,2516.6,2516.5,7.57879]
[1725051492662,0.39738,2516.6,2516.5,7.1814]
[1725051493168,0.39738,2516.6,2516.5,3.2078]
[1725051493358,0.39738,2516.6,2516.5,3.60519]
[1725051493866,0.39738,2516.6,2516.5,3.2078]
[1725051494666,1.39083,2516.6,2516.5,3.2078]
[1725051494967,1.39094,2516.4,2516.3,0.00595983]
[1725051497071,2.38447,2516.4,2516.3,0.00595983]
[1725051497569,2.75967,2516.4,2516.3,0.00595983]
[1725051498163,0.39741,2516.4,2516.3,3.98035983]
[1725051498366,0.39741,2516.4,2516.3,4.37777983]
[1725051498773,3.6052,2516.5,2516.4,0.39741]
[1725051498971,3.6052,2516.5,2516.4,4.73671]
[1725051499271,3.6052,2516.5,2516.4,0.76311]
[1725051500065,3.2078,2516.5,2516.4,4.73671]
[1725051500273,3.583,2516.8,2516.4,5.33282]
[1725051500474,3.583,2516.8,2516.7,0.39736]
[1725051500475,3.2078,2516.8,2516.7,0.39736]
[1725051500675,0.00591989,2516.9,2516.8,2.38408]
[1725051500871,0.00591989,2516.9,2516.8,12.35768]
[1725051501067,0.39722,2517.6,2517.5,0.39722]
[1725051501268,0.75032,2517.7,2517.6,0.39722]
[1725051501572,0.39722,2517.7,2517.6,0.39722]
[1725051502365,0.39723,2517.6,2517.5,0.39723]
[1725051502564,0.39721,2517.7,2517.6,0.39721]
[1725051503068,3.2078,2517.8,2517.5,0.39722]
[1725051503069,0.39723,2517.6,2517.5,0.39722]
[1725051503272,0.39721,2517.7,2517.6,0.3972]
[1725051506976,0.39721,2517.7,2517.6,4.3692]
[1725051508170,3.2078,2517.8,2517.6,4.3692]
[1725051508171,3.2078,2517.8,2517.7,0.3972]
[1725051511165,3.2078,2517.8,2517.7,1.39021]
[1725051511476,3.98464,2518.2,2518.1,0.39714]
[1725051513474,0.39716,2518.0,2517.9,0.00595983]
[1725051513674,5.36126,2518.0,2517.9,0.00595983]
[1725051513878,1.77176,2518.0,2517.9,0.00595983]
[1725051514671,0.77886,2518.0,2517.9,0.00595983]
[1725051514874,3.5875,2518.2,2517.9,0.00595983]
[1725051515080,3.2078,2519.0,2518.1,3.43]
[1725051515275,3.2078,2519.3,2519.2,0.39697]
[1725051515583,3.2078,2519.3,2519.1,0.39698]
[1725051515584,0.39697,2519.2,2519.1,0.39698]
[1725051515876,0.39697,2519.2,2519.0,0.00595983]
[1725051516080,0.39698,2519.1,2519.0,0.00595983]
[1725051516275,3.2078,2519.6,2519.0,6.64375983]
[1725051516480,3.2078,2519.6,2519.5,0.39692]
[1725051517180,0.7102,2519.8,2519.7,0.39689]
[1725051517774,0.39691,2519.6,2519.3,3.43]
[1725051517980,0.39689,2519.7,2519.5,0.39692]
[1725051518279,0.39686,2519.9,2519.7,0.39688]
[1725051518680,0.39689,2519.7,2519.3,3.43]
[1725051518983,0.39691,2519.6,2519.4,0.39693]
[1725051519190,0.39692,2519.5,2519.4,0.39693]
[1725051519373,0.99219,2519.8,2519.4,0.39693]
[1725051519881,0.39692,2519.5,2519.4,0.39693]
[1725051520076,0.39693,2519.4,2519.3,3.82694]
[1725051520274,3.2078,2519.7,2519.2,0.39696]
[1725051520478,0.39697,2519.2,2519.1,11.41897]
[1725051520681,3.2078,2519.7,2519.0,6.64375983]
[1725051520682,0.39698,2519.1,2519.0,7.04074983]
[1725051520884,0.39698,2519.1,2519.0,3.61074983]
[1725051521178,0.39698,2519.2,2519.1,0.39698]
[1725051521384,0.39696,2519.3,2519.2,0.39697]
[1725051521885,0.39697,2519.2,2519.1,0.39697]
[1725051522086,3.9958,2520.0,2519.2,0.39696]
[1725051522087,3.2078,2519.4,2519.2,0.39696]
[1725051522288,0.39696,2519.3,2519.1,0.39697]
[1725051522486,0.39697,2519.2,2519.1,0.39697]
[1725051522683,0.39696,2519.3,2519.2,0.39696]
[1725051522992,0.39695,2519.3,2519.2,0.39696]
[1725051523283,0.39695,2519.3,2519.1,0.39697]
[1725051524583,0.39695,2519.3,2519.0,0.00595983]
[1725051524584,0.39698,2519.1,2519.0,0.00595983]
[1725051525285,4.59724,2519.1,2519.0,0.00595983]
[1725051526090,8.56684,2519.1,2519.0,0.00595983]
[1725051526291,0.39703,2518.8,2518.7,3.2078]
[1725051526787,1.38961,2518.8,2518.7,3.2078]
[1725051526988,1.76501,2518.8,2518.7,3.2078]
[1725051528095,1.38972,2518.6,2518.5,0.00595983]
[1725051528583,5.73222,2518.6,2518.5,0.00595983]
[1725051528785,5.73222,2518.6,2517.9,4.158]
[1725051528786,0.99274,2518.4,2517.9,4.158]
[1725051528988,0.99274,2518.4,2517.7,6.9928]
[1725051528989,0.39718,2517.9,2517.7,7.98519]
[1725051529383,0.39719,2517.8,2517.7,11.56]
[1725051529586,3.60498,2517.9,2517.7,7.79919]
[1725051529883,3.2078,2517.9,2517.8,0.39719]
[1725051530085,0.39716,2518.0,2517.8,0.39717]
[1725051530291,0.39716,2518.0,2517.7,3.43]
[1725051530480,0.39716,2518.0,2517.8,0.39717]
[1725051530682,0.3721,2518.6,2517.8,0.39717]